bitfinex/quotes_SOLUSD_20240625
["timestamp","ask_amount","ask_price","bid_price","bid_amount"]
[1719350359270,30.8076857,137.77,137.71,0.34]
[1719350361074,30.3076857,137.77,137.71,0.84021784]
[1719350361269,7.2602,137.74,137.71,0.84021784]
[1719350361448,7.2597,137.75,137.71,0.84021784]
[1719350361764,7.2591,137.76,137.71,0.84021784]
[1719350362070,2.5491857,137.75,137.71,0.84021784]
[1719350363470,27.2586,137.77,137.71,0.84021784]
[1719350363471,2.5491857,137.76,137.71,0.84021784]
[1719350367279,3.0491857,137.77,137.71,0.34]
[1719350368662,23.0491857,137.78,137.71,0.34]
[1719350368972,23.0491857,137.78,137.72,6.5741]
[1719350369155,3.0491857,137.78,137.73,0.34]
[1719350370767,23.0491857,137.79,137.74,15.4122]
[1719350370966,20.0,137.79,137.75,0.34]
[1719350374271,23.0491857,137.79,137.75,0.34]
[1719350374579,20.0,137.79,137.75,0.34]
[1719350375776,7.2569,137.8,137.75,0.34]
[1719350376173,7.2565,137.81,137.75,0.34]
[1719350376375,23.0491857,137.8,137.75,0.34]
[1719350376683,3.0491857,137.8,137.75,0.34]
[1719350376880,7.2565,137.81,137.75,0.34]
[1719350379383,7.2565,137.81,137.75,3.38192358]
[1719350380088,10.3060857,137.8,137.75,3.38192358]
[1719350381479,3.0491857,137.8,137.75,3.38192358]
[1719350381686,23.0491857,137.8,137.75,3.38192358]
[1719350383797,30.3060857,137.8,137.75,3.38192358]
[1719350385291,10.3067857,137.79,137.75,0.34]
[1719350385492,27.2581,137.78,137.74,15.4122]
[1719350385794,3.0491857,137.77,137.74,15.4122]
[1719350400309,7.2575,137.79,137.75,0.17]
[1719350400488,3.0491857,137.78,137.75,0.17]
[1719350401591,10.3071857,137.78,137.75,0.17]
[1719350401795,3.0491857,137.77,137.75,0.17]
[1719350402803,7.258,137.78,137.75,0.17]
[1719350402986,10.3075857,137.77,137.74,15.4122]
[1719350406694,3.0491857,137.77,137.74,15.4122]
[1719350411900,3.0491857,137.78,137.74,15.4122]
[1719350414110,3.0491857,137.78,137.72,6.5741]
[1719350414310,3.0491857,137.78,137.71,16.2015]
[1719350414311,7.2592,137.76,137.71,16.3715]
[1719350414619,3.0491857,137.75,137.71,16.3715]
[1719350415521,3.0491857,137.76,137.71,16.3715]
[1719350421124,3.0491857,137.76,137.72,0.17]
[1719350421903,3.0491857,137.77,137.72,6.4465]
[1719350422905,3.0491857,137.78,137.72,6.4465]
[1719350423527,10.3070857,137.78,137.72,6.4465]
[1719350423826,3.0491857,137.78,137.72,6.4465]
[1719350428027,3.0491857,137.78,137.73,15.9002]
[1719350428229,3.0491857,137.8,137.74,0.34]
[1719350428573,3.0491857,137.8,137.73,15.7402]
[1719350429329,8.81752499,137.81,137.73,15.7402]
[1719350429515,5.76833929,137.81,137.73,15.7402]
[1719350429717,8.81752499,137.81,137.73,15.7402]
[1719350430113,3.0491857,137.81,137.73,15.7402]
[1719350430838,3.0491857,137.81,137.74,0.34]
[1719350435933,7.2559,137.82,137.74,0.34]
[1719350436138,3.0491857,137.81,137.74,0.34]
[1719350436826,7.2565,137.81,137.74,0.34]
[1719350437135,23.0491857,137.84,137.74,0.34]
[1719350437136,7.256,137.82,137.74,0.34]
[1719350437317,3.0491857,137.81,137.74,0.34]
[1719350438639,23.0491857,137.81,137.74,0.34]
[1719350447745,3.0491857,137.81,137.74,0.34]
[1719350448043,23.0491857,137.82,137.74,0.34]
[1719350448641,30.3049857,137.82,137.74,0.34]
[1719350449022,3.0491857,137.81,137.74,0.34]
[1719350460126,3.0491857,137.81,137.73,15.7402]
[1719350460333,3.0491857,137.82,137.74,26.6032]
[1719350460526,7.2548,137.84,137.75,15.8013]
[1719350460733,3.0491857,137.83,137.76,20.0]
[1719350461038,10.3044857,137.83,137.76,20.0]
[1719350461237,3.0491857,137.83,137.76,20.0]
[1719350461736,3.0491857,137.83,137.77,0.34]
[1719350462747,3.0491857,137.82,137.77,0.34]
[1719350463149,3.0491857,137.82,137.78,0.17]
[1719350463343,3.0491857,137.82,137.76,0.34]
[1719350466961,23.0491857,137.84,137.76,0.34]
[1719350467756,23.0491857,137.84,137.75,15.8013]
[1719350467963,7.2565,137.81,137.75,15.8013]
[1719350468166,23.0491857,137.8,137.75,15.8013]
[1719350468360,3.0491857,137.79,137.75,15.8013]
[1719350470062,23.0491857,137.8,137.75,16.31434865]
[1719350470267,3.0491857,137.82,137.76,0.34]
[1719350470471,23.0491857,137.82,137.76,0.8530114]
[1719350470762,30.3049857,137.82,137.76,0.8530114]
[1719350471167,3.0491857,137.81,137.76,0.8530114]
[1719350471839,27.2558,137.82,137.76,0.8530114]
[1719350471840,20.0,137.82,137.76,0.8530114]
[1719350472044,3.0491857,137.82,137.76,0.8530114]
[1719350475889,10.3051857,137.82,137.76,0.8530114]
[1719350479108,3.0491857,137.82,137.76,0.8530114]
[1719350480699,10.3049857,137.82,137.76,0.8530114]
[1719350498624,3.0491857,137.82,137.75,15.8013]
[1719350498824,7.2576,137.79,137.75,15.8013]
[1719350499026,20.0,137.78,137.75,15.8013]
[1719350499910,3.0491857,137.77,137.75,15.8013]
[1719350500315,20.0,137.78,137.75,15.8013]
[1719350500516,23.0491857,137.78,137.75,15.8013]
[1719350504743,30.3072857,137.78,137.75,15.8013]
[1719350512350,3.0491857,137.81,137.75,15.8013]
[1719350512522,10.3056857,137.81,137.76,0.34]
[1719350512722,20.0,137.8,137.76,0.34]
[1719350513643,23.0491857,137.8,137.76,0.34]
[1719350515341,20.0,137.8,137.76,0.34]
[1719350515647,7.2556,137.83,137.77,22.8351]
[1719350515949,7.2556,137.83,137.78,0.34]
[1719350530339,3.0491857,137.87,137.78,0.34]
[1719350530543,18.1329,137.88,137.8,6.0992]
[1719350530544,3.0491857,137.88,137.8,6.0992]
[1719350530757,7.2525,137.89,137.81,36.091]
[1719350530962,3.0491857,137.88,137.81,36.091]
[1719350531451,3.0491857,137.89,137.81,36.091]
[1719350531649,7.2532,137.87,137.81,36.091]
[1719350531980,7.2527,137.88,137.81,36.091]
[1719350532772,3.0491857,137.91,137.81,36.091]
[1719350532956,23.0491857,137.91,137.81,36.091]
[1719350533695,3.0491857,137.91,137.81,36.091]
[1719350533999,7.2521,137.9,137.81,36.091]
[1719350534175,27.2521,137.89,137.81,36.091]
[1719350534499,3.0491857,137.88,137.81,36.091]
[1719350534698,10.3019857,137.88,137.81,36.091]
[1719350534879,3.0491857,137.87,137.81,35.921]
[1719350535068,10.3023857,137.87,137.81,35.921]
[1719350535270,10.3023857,137.87,137.81,15.921]
[1719350535486,3.0491857,137.87,137.81,15.921]
[1719350535686,7.2528,137.88,137.81,15.921]
[1719350536272,7.2528,137.88,137.82,0.17]
[1719350536689,3.0491857,137.87,137.82,0.17]
[1719350541518,7.2525,137.89,137.82,0.17]
[1719350541519,23.0491857,137.88,137.82,0.17]
[1719350546595,23.0491857,137.89,137.82,0.17]
[1719350547014,3.0491857,137.89,137.82,0.17]
[1719350548925,10.3015857,137.89,137.82,0.17]
[1719350549127,20.0,137.88,137.82,0.17]
[1719350549426,3.0491857,137.89,137.82,0.17]
[1719350550227,10.3014857,137.89,137.82,0.17]
[1719350550402,20.0,137.88,137.82,0.17]
[1719350550603,3.0491857,137.87,137.82,0.17]
[1719350555925,3.0491857,137.87,137.82,0.17]
[1719350564050,3.0491857,137.88,137.82,0.17]
[1719350564417,3.2257557,137.88,137.82,0.17]
[1719350568223,10.4787557,137.88,137.81,17.95456885]
[1719350569638,10.4787557,137.88,137.82,0.17]
[1719350569817,10.4787557,137.88,137.82,0.34]
[1719350572136,3.2257557,137.88,137.82,0.34]
[1719350572333,3.2257557,137.88,137.82,2.54324909]
[1719350595656,7.2532,137.87,137.82,2.54324909]
[1719350595848,3.0491857,137.86,137.82,2.54324909]
[1719350596932,3.0491857,137.87,137.82,2.54324909]
[1719350598954,10.3024857,137.87,137.82,2.54324909]
[1719350599156,10.3024857,137.87,137.82,0.17]
[1719350604357,3.0491857,137.87,137.82,0.17]
[1719350604660,23.0491857,137.87,137.82,0.17]
[1719350609655,23.2257557,137.87,137.82,0.17]
[1719350610673,3.0491857,137.86,137.82,0.17]
[1719350611757,3.2257557,137.87,137.82,2.70253433]
[1719350611962,3.2257557,137.87,137.82,2.87253433]
[1719350614259,3.2257557,137.87,137.82,0.17]
[1719350614975,3.2257557,137.87,137.82,0.34]
[1719350615670,3.2257557,137.87,137.82,0.17]
[1719350616857,3.2257557,137.87,137.82,0.34]
[1719350618864,10.4791557,137.87,137.82,0.17]
[1719350620173,3.2257557,137.87,137.82,0.34]
[1719350620368,3.2257557,137.87,137.82,2.87347488]
[1719350621365,0.17657,137.87,137.82,2.87347488]
[1719350622557,3.2257557,137.87,137.82,2.87347488]
[1719350622972,10.4789557,137.87,137.82,2.87347488]
[1719350623883,3.2257557,137.87,137.82,2.87347488]
[1719350624060,10.4789557,137.87,137.82,0.17]
[1719350625862,7.2537,137.86,137.81,15.751]
[1719350626164,3.0491857,137.85,137.81,18.31076116]
[1719350627582,3.0491857,137.85,137.81,15.751]
[1719350627774,3.0491857,137.85,137.81,18.31020392]
[1719350628383,3.0491857,137.85,137.81,15.751]
[1719350628586,10.3035857,137.85,137.81,15.751]
[1719350628768,3.0491857,137.84,137.81,15.751]
[1719350630281,23.0491857,137.85,137.81,15.751]
[1719350631172,30.3034857,137.85,137.81,15.751]
[1719350631372,3.0491857,137.84,137.81,15.751]
[1719350634398,3.0491857,137.85,137.81,15.751]
[1719350635279,3.0491857,137.85,137.81,18.31064775]
[1719350635483,3.0491857,137.85,137.82,0.17]
[1719350635690,23.0491857,137.86,137.82,0.17]
[1719350635877,3.0491857,137.85,137.82,0.17]
[1719350637169,3.0491857,137.85,137.82,2.72846771]
[1719350637579,23.0491857,137.86,137.82,2.72846771]
[1719350637791,3.0491857,137.86,137.82,2.72846771]
[1719350638731,23.2257557,137.87,137.82,2.72846771]
[1719350638876,30.4790557,137.87,137.82,0.17]
[1719350640496,20.17657,137.87,137.82,0.34]
[1719350640697,23.2257557,137.87,137.82,0.34]
[1719350640884,3.2257557,137.87,137.82,0.34]
[1719350641280,0.17657,137.87,137.82,0.34]
[1719350642980,3.2257557,137.87,137.82,0.34]
[1719350646912,23.2257557,137.87,137.82,0.34]
[1719350647228,3.2257557,137.87,137.82,0.34]
[1719350647525,0.17657,137.87,137.82,0.34]
[1719350647895,7.42987,137.87,137.82,0.34]
[1719350648219,10.3029857,137.86,137.81,15.751]
[1719350648388,3.0491857,137.85,137.81,15.751]
[1719350653415,23.0491857,137.86,137.81,15.751]
[1719350653608,3.0491857,137.85,137.81,15.751]
[1719350655199,3.2257557,137.85,137.81,15.751]
[1719350657021,3.2257557,137.85,137.82,0.17]
[1719350657203,3.2257557,137.85,137.82,0.34]
[1719350657406,0.17657,137.85,137.82,0.17]
[1719350657606,3.2257557,137.85,137.82,0.17]
[1719350658212,0.17657,137.85,137.82,0.17]
[1719350658726,0.17657,137.85,137.82,0.34]
[1719350659814,0.17657,137.85,137.82,0.17]
[1719350660318,3.2257557,137.85,137.82,0.17]
[1719350661208,0.17657,137.85,137.82,0.34]
[1719350661611,0.17657,137.85,137.83,16.6305]
[1719350661811,0.17657,137.85,137.84,0.34]
[1719350683211,3.0491857,137.93,137.84,0.34]
[1719350683212,10.2992857,137.93,137.84,20.34]
[1719350683438,3.0491857,137.93,137.84,26.3404]
[1719350683641,23.0491857,137.93,137.84,26.3404]
[1719350688752,30.2991857,137.93,137.85,15.6078]
[1719350688922,30.2991857,137.93,137.86,0.34]
[1719350689432,0.8483318,137.97,137.87,22.2167]
[1719350689744,0.8483318,137.97,137.88,20.34]
[1719350690742,3.8975175,137.97,137.88,20.34]
[1719350691424,0.8483318,137.97,137.88,20.34]
[1719350693424,0.8483318,137.97,137.89,5.73356272]
[1719350693630,0.8483318,137.97,137.9,20.34]
[1719350693838,0.8483318,137.97,137.91,5.73273122]
[1719350694035,0.8483318,137.97,137.92,0.34]
[1719350694327,0.8483318,137.97,137.92,2.79892561]
[1719350695245,0.8483318,137.97,137.92,0.34]
[1719350695626,0.8483318,137.97,137.92,2.79972122]
[1719350700457,3.0491857,137.96,137.92,2.45972122]
[1719350700945,0.8483318,137.97,137.91,15.5116]
[1719350701344,7.249,137.95,137.91,15.5116]
[1719350701545,7.2486,137.96,137.91,15.5116]
[1719350701733,11.1456175,137.97,137.91,15.5116]
[1719350702150,3.8975175,137.97,137.92,1.61820643]
[1719350702653,0.8483318,137.97,137.93,0.17]
[1719350702833,3.8975175,137.97,137.93,0.17]
[1719350703040,0.8483318,137.97,137.93,0.17]
[1719350704856,0.8483318,137.97,137.93,3.06740997]
[1719350705147,0.8483318,137.97,137.94,0.17]
[1719350705733,8.0965318,137.97,137.91,15.5116]
[1719350706051,3.0491857,137.96,137.91,15.5116]
[1719350706452,0.8483318,137.97,137.92,2.91970138]
[1719350706751,3.8975175,137.97,137.92,2.91970138]
[1719350707258,3.8975175,137.97,137.93,0.17]
[1719350707458,3.8975175,137.97,137.93,0.34]
[1719350707753,3.8975175,137.97,137.93,0.17]
[1719350718967,3.8975175,137.97,137.93,5.38537788]
[1719350719664,11.1454175,137.97,137.92,5.2335391]
[1719350719966,11.1456175,137.97,137.92,5.23382541]
[1719350720338,11.1456175,137.97,137.91,15.8516]
[1719350720564,11.1456175,137.97,137.92,0.34]
[1719350721292,3.8975175,137.97,137.92,0.34]
[1719350722255,3.8975175,137.97,137.92,5.57341003]
[1719350727772,3.8975175,137.97,137.93,6.0028]
[1719350727773,0.8483318,137.97,137.93,6.0028]
[1719350727975,0.8483318,137.97,137.94,5.5935756]
[1719350728662,0.8483318,137.97,137.95,16.6227]
[1719350728865,0.8483318,137.97,137.96,0.17]
[1719350730973,0.8483318,137.97,137.96,5.59281399]
[1719350731158,0.8483318,137.97,137.96,0.34]
[1719350733354,0.8483318,137.97,137.93,6.0028]
[1719350733659,0.8483318,137.97,137.93,11.25637569]
[1719350734956,0.8483318,137.97,137.94,0.34]
[1719350738471,0.8483318,137.97,137.94,12.66440776]
[1719350738671,0.8483318,137.97,137.94,5.59440776]
[1719350740669,7.9183318,137.97,137.93,5.25440776]
[1719350740875,7.07,137.96,137.93,5.25440776]
[1719350741585,7.07,137.96,137.92,16.2764]
[1719350742286,7.07,137.95,137.92,16.2764]
[1719350743482,3.8975175,137.97,137.92,16.2764]
[1719350743666,7.07,137.95,137.92,16.2764]
[1719350743870,7.07,137.96,137.92,16.2764]
[1719350745086,7.07,137.96,137.93,0.17]
[1719350746786,3.8975175,137.97,137.93,0.17]
[1719350746965,7.07,137.95,137.92,0.34]
[1719350747172,7.07,137.95,137.93,0.17]
[1719350747376,0.8483318,137.97,137.92,0.17]
[1719350747670,7.07,137.95,137.92,0.17]
[1719350750775,7.07,137.96,137.92,0.17]
[1719350751870,7.07,137.96,137.91,5.42570356]
[1719350752066,11.1455175,137.97,137.88,16.6579]
[1719350752067,23.0491857,137.95,137.88,16.6579]
[1719350752295,7.07,137.93,137.88,16.6579]
[1719350752488,10.1191857,137.93,137.88,16.6579]
[1719350752692,3.0491857,137.93,137.88,16.6579]
[1719350752881,27.249,137.95,137.88,16.6579]
[1719350753388,7.2501,137.93,137.88,16.6579]
[1719350753569,7.07,137.92,137.85,107.09268425]
[1719350753775,3.0491857,137.91,137.86,7.07]
[1719350753977,10.2989857,137.94,137.86,7.07]
[1719350754177,20.0,137.93,137.87,7.07]
[1719350754493,10.1191857,137.92,137.85,6.0682]
[1719350755278,3.0491857,137.91,137.85,6.0682]
[1719350755599,3.0491857,137.91,137.86,0.34]
[1719350761901,52.2798318,137.97,137.89,7.07]
[1719350761902,3.0491857,137.96,137.89,7.07]
[1719350762110,3.0491857,137.96,137.9,7.41]
[1719350762412,3.0491857,137.96,137.9,0.34]
[1719350762585,7.07,137.95,137.9,0.34]
[1719350763086,10.1191857,137.95,137.9,0.34]
[1719350763290,7.07,137.95,137.9,0.34]
[1719350764388,7.07,137.94,137.9,0.34]
[1719350764698,3.8975175,137.97,137.91,0.17]
[1719350764699,7.07,137.95,137.91,0.17]
[1719350764901,7.07,137.95,137.89,7.41]
[1719350770804,7.07,137.94,137.89,0.34]
[1719350771608,7.07,137.94,137.88,7.41]
[1719350783111,7.07,137.94,137.88,0.34]
[1719350783419,7.07,137.94,137.88,7.41]
[1719350783607,10.2976857,137.96,137.88,7.41]
[1719350783804,20.0,137.95,137.88,7.41]
[1719350784013,3.0491857,137.94,137.88,7.41]
[1719350785095,3.0491857,137.95,137.88,7.41]
[1719350785300,7.07,137.94,137.88,7.41]
[1719350789605,3.0491857,137.93,137.88,7.41]
[1719350789812,3.0491857,137.93,137.88,0.34]
[1719350792725,7.07,137.94,137.88,0.34]
[1719350792898,3.0491857,137.93,137.88,0.34]
[1719350794518,10.1191857,137.93,137.88,0.34]
[1719350794720,10.1191857,137.92,137.88,0.17]
[1719350794922,7.07,137.92,137.88,0.17]
[1719350795913,3.0491857,137.91,137.88,0.17]
[1719350797329,7.07,137.92,137.88,0.17]
[1719350797502,3.0491857,137.91,137.88,0.17]
[1719350797917,7.07,137.93,137.88,0.34]
[1719350799430,3.0491857,137.94,137.88,0.34]
[1719350799633,7.07,137.93,137.88,0.34]
[1719350802823,3.0491857,137.92,137.88,0.34]
[1719350806317,7.07,137.92,137.88,0.34]
[1719350807136,10.1191857,137.92,137.88,0.34]
[1719350807323,10.1191857,137.92,137.88,0.17]
[1719350808134,3.0491857,137.91,137.88,0.17]
[1719350809326,10.1191857,137.91,137.88,0.17]
[1719350813133,7.07,137.89,137.87,16.0715]
[1719350815826,7.07,137.89,137.85,6.0682]
[1719350816023,7.07,137.87,137.84,0.69197947]
[1719350817423,7.07,137.87,137.85,0.17]
[1719350817620,3.0491857,137.89,137.85,0.17]
[1719350817942,7.07,137.88,137.85,0.17]
[1719350823734,3.0491857,137.93,137.85,7.41]
[1719350823940,3.0491857,137.93,137.86,7.7618791]
[1719350824155,7.07,137.92,137.87,0.34]
[1719350824360,10.1191857,137.92,137.87,1.03182891]
[1719350825447,7.07,137.92,137.87,1.03182891]
[1719350825648,10.1191857,137.92,137.87,1.03182891]
[1719350826734,7.07,137.92,137.87,1.03182891]
[1719350826942,10.1191857,137.92,137.87,1.03182891]
[1719350827855,7.07,137.92,137.87,1.03182891]
[1719350828736,10.1191857,137.92,137.87,1.03182891]
[1719350831349,10.2992857,137.93,137.88,15.6461]
[1719350831660,7.07,137.93,137.89,1.07235912]
[1719350837157,3.0491857,137.92,137.88,16.41501076]
[1719350837350,7.07,137.91,137.88,16.41501076]
[1719350838152,7.07,137.91,137.88,15.6461]
[1719350840253,7.2495,137.94,137.89,0.82978721]
[1719350840456,7.07,137.92,137.89,0.82978721]
[1719350840758,7.07,137.91,137.89,0.82987919]
[1719350841360,7.07,137.91,137.88,16.47597919]
[1719350841560,7.07,137.92,137.89,0.17]
[1719350845570,3.0491857,137.93,137.89,0.17]
[1719350845758,7.07,137.92,137.89,0.17]
[1719350849695,3.0491857,137.95,137.89,0.17]
[1719350849983,7.07,137.93,137.89,1.169819]
[1719350850472,3.0491857,137.95,137.89,1.169819]
[1719350850673,7.07,137.94,137.89,1.169819]
[1719350850863,3.0491857,137.95,137.89,1.169819]
[1719350851064,7.07,137.93,137.89,1.169819]
[1719350851475,7.07,137.92,137.89,1.169819]
[1719350851881,7.07,137.91,137.89,1.169819]
[1719350852078,7.07,137.92,137.89,1.169819]
[1719350856203,10.1191857,137.91,137.86,0.83052465]
[1719350856375,7.07,137.88,137.82,16.3391]
[1719350856575,3.0491857,137.87,137.82,16.3391]
[1719350856983,3.0491857,137.87,137.82,23.4091]
[1719350859092,3.0491857,137.87,137.83,0.34]
[1719350864690,10.1191857,137.88,137.83,0.34]
[1719350865704,10.1191857,137.87,137.83,0.34]
[1719350866193,10.1191857,137.87,137.83,1.25121062]
[1719350870582,7.07,137.87,137.83,1.25121062]
[1719350893303,3.0491857,137.91,137.83,8.32121062]
[1719350893614,7.07,137.9,137.84,7.07]
[1719350893789,3.0491857,137.89,137.85,1.25178191]
[1719350893993,3.0491857,137.91,137.85,1.08178191]
[1719350894195,7.07,137.89,137.86,0.17]
[1719350894697,3.0491857,137.91,137.86,0.17]
[1719350894895,10.1191857,137.91,137.86,1.08171577]
[1719350896516,7.07,137.9,137.86,1.08171577]
[1719350896717,3.0491857,137.91,137.86,0.17]
[1719350896904,7.07,137.9,137.86,0.17]
[1719350903240,14.3216,137.9,137.86,0.17]
[1719350903527,7.07,137.9,137.86,0.17]
[1719350911330,3.0491857,137.91,137.86,0.17]
[1719350911523,7.07,137.9,137.86,0.17]
[1719350913512,14.3217,137.9,137.85,0.91171579]
[1719350913830,7.07,137.88,137.84,7.15000116]
[1719350914236,3.0491857,137.89,137.84,7.15000116]
[1719350914415,10.1191857,137.89,137.84,7.15000116]
[1719350914833,10.1191857,137.89,137.85,0.17]
[1719350915033,10.1191857,137.89,137.85,1.25732604]
[1719350916017,7.07,137.89,137.85,1.25732604]
[1719350917128,3.0491857,137.9,137.86,15.4283]
[1719350917326,10.1191857,137.9,137.86,15.4283]
[1719350917510,7.07,137.89,137.86,15.4283]
[1719350926248,10.1191857,137.9,137.86,15.4283]
[1719350927935,3.0491857,137.89,137.86,15.4283]
[1719350928647,10.1191857,137.89,137.86,15.4283]
[1719350931653,3.0491857,137.89,137.86,15.4283]
[1719350931834,10.1191857,137.9,137.86,15.4283]
[1719350932241,3.0491857,137.89,137.86,15.4283]
[1719350933651,10.1191857,137.9,137.86,15.4283]
[1719350938351,3.0491857,137.89,137.86,15.4283]
[1719350950944,3.0491857,137.93,137.88,6.1696]
[1719350951145,6.03214585,137.94,137.89,8.32705993]
[1719350951146,3.0491857,137.94,137.89,8.32705993]
[1719350951351,10.1191857,137.95,137.9,15.98609342]
[1719350951552,10.1191857,137.95,137.91,0.34]
[1719350951945,7.07,137.95,137.91,0.34]
[1719350954150,7.07,137.96,137.91,0.34]
[1719350954361,3.0491857,137.95,137.91,0.34]
[1719350955460,3.0491857,137.95,137.9,15.0691]
[1719350955674,7.07,137.93,137.88,6.1696]
[1719350955960,3.0491857,137.92,137.88,14.16477301]
[1719350956879,3.0491857,137.93,137.88,14.16477301]
[1719350957048,3.0491857,137.93,137.89,0.17]
[1719350957747,10.1191857,137.92,137.87,15.9443]
[1719350958157,3.0491857,137.92,137.87,15.9443]
[1719350958675,3.0491857,137.92,137.87,23.0143]
[1719350959269,10.2997857,137.92,137.87,15.9443]
[1719350959453,3.0491857,137.92,137.83,15.5308]
[1719350959652,7.07,137.88,137.83,15.5308]
[1719350959853,3.0491857,137.87,137.83,15.5308]
[1719350960356,3.0491857,137.87,137.83,22.6008]
[1719350960769,30.0,137.85,137.83,15.5308]
[1719350967056,3.0491857,137.84,137.83,15.5308]
[1719350967248,33.0491857,137.84,137.82,0.17]
[1719350973678,30.0,137.84,137.83,7.24]
[1719350973978,30.0,137.84,137.83,7.41]
[1719350974357,3.0491857,137.88,137.83,7.41]
[1719350974663,3.0491857,137.88,137.84,0.17]
[1719350974982,30.0,137.85,137.84,7.24]
[1719350975294,30.0,137.85,137.84,7.41]
[1719350975962,3.0491857,137.88,137.84,7.41]
[1719350976177,3.0491857,137.9,137.85,9.70344236]
[1719350976389,3.0491857,137.9,137.86,2.63564423]
[1719350976675,3.0491857,137.9,137.86,7.24]
[1719350977172,3.0491857,137.91,137.86,7.24]
[1719350977480,37.3703857,137.91,137.85,7.24]
[1719350977777,7.07,137.9,137.85,7.24]
[1719350977965,3.0491857,137.89,137.85,7.24]
[1719350978676,3.0491857,137.89,137.82,2.46614711]
[1719350978881,3.0491857,137.89,137.84,7.07]
[1719350979187,3.0491857,137.89,137.83,7.24]
[1719350979387,10.1191857,137.89,137.83,7.24]
[1719350979900,7.07,137.88,137.83,0.17]
[1719350980180,3.0491857,137.87,137.83,0.17]
[1719350980680,3.0491857,137.87,137.83,2.80596826]
[1719350981065,3.0491857,137.89,137.83,2.80596826]
[1719350981265,7.07,137.88,137.83,2.80596826]
[1719350981566,3.0491857,137.87,137.83,2.80596826]
[1719350982386,3.0491857,137.87,137.83,0.34]
[1719350982567,3.0491857,137.87,137.83,2.86576836]
[1719350982962,10.1191857,137.89,137.83,9.93576836]
[1719350983678,10.1191857,137.89,137.83,2.86576836]
[1719350983884,3.0491857,137.88,137.83,7.41]
[1719350984062,10.1191857,137.89,137.84,2.57696992]
[1719350984264,3.0491857,137.89,137.85,0.34]
[1719350984465,10.1191857,137.9,137.85,0.34]
[1719350984785,3.0491857,137.89,137.85,0.34]
[1719350985385,3.0491857,137.9,137.85,18.93149606]
[1719350985684,10.1191857,137.9,137.85,18.93149606]
[1719350985882,3.0491857,137.9,137.85,18.93149606]
[1719350986189,10.1191857,137.9,137.85,18.93149606]
[1719350988380,10.1191857,137.9,137.85,16.3549]
[1719350995704,7.07,137.89,137.85,16.3549]
[1719350996687,10.1191857,137.9,137.85,16.3549]
[1719350998793,7.07,137.89,137.85,16.3549]
[1719350998996,10.1191857,137.9,137.85,16.3549]
[1719351000525,10.1191857,137.9,137.85,16.1849]
[1719351001794,3.0491857,137.9,137.85,16.1849]
[1719351001993,23.0491857,137.9,137.85,16.1849]
[1719351002411,23.0491857,137.9,137.85,0.17]
[1719351002723,30.1191857,137.9,137.84,0.34]
[1719351003211,30.1191857,137.9,137.84,2.91579049]
[1719351003404,7.07,137.89,137.84,2.91579049]
[1719351003603,3.0491857,137.88,137.84,2.91579049]
[1719351003809,3.0491857,137.88,137.84,2.74579049]
[1719351005290,3.0491857,137.89,137.84,2.74579049]
[1719351008627,3.0491857,137.89,137.84,0.17]
[1719351008939,3.0491857,137.89,137.84,0.34]
[1719351018039,3.0491857,137.89,137.83,2.58344511]
[1719351018040,7.07,137.88,137.83,2.58344511]
[1719351018331,3.0491857,137.87,137.83,2.58344511]
[1719351018834,3.0491857,137.87,137.82,9.82918299]
[1719351019027,3.0491857,137.87,137.83,0.17]
[1719351027608,3.0491857,137.87,137.81,21.5561]
[1719351027609,10.1191857,137.87,137.81,21.3861]
[1719351027814,10.1191857,137.86,137.81,21.3861]